bitfinex/quotes_SOLUSD_20220101
["timestamp","ask_amount","ask_price","bid_price","bid_amount"]
[1641064150854,27.49306472,176.0,175.89,8.5261]
[1641064152057,27.49306472,176.0,175.89,9.0261]
[1641064152256,27.49306472,176.0,175.89,8.5261]
[1641064152458,2.07623061,176.0,175.89,9.0261]
[1641064153059,0.5,176.0,175.89,9.0261]
[1641064153257,4.54106287,176.01,175.89,9.0261]
[1641064153556,40.84056114,176.04,175.95,8.5231]
[1641064153756,10.26073061,176.04,175.96,11.42976863]
[1641064153957,10.76073061,176.04,175.96,11.42976863]
[1641064154560,9.1845,176.04,175.96,11.42976863]
[1641064154760,8.6845,176.04,175.97,8.5224]
[1641064154960,8.6845,176.04,175.96,11.42976863]
[1641064155366,1.57623061,176.05,175.96,11.42976863]
[1641064155664,0.5,176.05,175.96,11.42976863]
[1641064156462,1.57623061,176.05,175.96,11.42976863]
[1641064156661,2.33623061,176.05,175.98,8.5222]
[1641064156862,1.83623061,176.05,175.98,8.5222]
[1641064157061,0.26,176.05,175.98,8.5222]
[1641064157262,28.12999979,176.06,175.98,8.5222]
[1641064158262,1.57623061,176.05,175.98,8.5222]
[1641064158665,0.26,176.05,175.98,8.5222]
[1641064159262,27.86999979,176.06,175.98,8.5222]
[1641064159863,26.55376918,176.06,175.98,8.5222]
[1641064160265,26.55376918,176.06,175.98,9.0222]
[1641064160867,0.26,176.06,175.98,9.0222]
[1641064161063,1.83623061,176.07,175.98,9.0222]
[1641064161265,1.57623061,176.07,175.98,9.0222]
[1641064161764,2.07623061,176.07,175.98,9.0222]
[1641064162466,1.57623061,176.07,175.98,9.0222]
[1641064162667,2.07623061,176.07,175.98,9.0222]
[1641064162868,2.33623061,176.07,175.98,9.0222]
[1641064165770,1.83623061,176.07,175.98,9.0222]
[1641064166372,2.33623061,176.07,175.98,9.0222]
[1641064166971,1.83623061,176.07,175.98,9.0222]
[1641064167170,1.83623061,176.07,175.98,10.2973]
[1641064167370,1.57623061,176.07,176.03,8.5199]
[1641064168075,1.57623061,176.09,176.03,17.3499]
[1641064168270,1.57623061,176.09,176.04,1.3203]
[1641064168471,1.57623061,176.09,176.06,8.5174]
[1641064168770,1.57623061,176.12,176.07,0.50197092]
[1641064169071,1.57623061,176.12,176.04,25.66603075]
[1641064169270,15.61718826,176.12,176.04,1.8203]
[1641064169471,15.61718826,176.12,176.04,1.3203]
[1641064169671,15.61718826,176.12,176.07,8.5182]
[1641064169872,1.57623061,176.11,176.07,8.5182]
[1641064170072,1.83623061,176.11,176.04,1.3203]
[1641064170473,1.83623061,176.11,176.04,1.8203]
[1641064170774,1.83623061,176.11,176.07,8.5183]
[1641064172276,1.83623061,176.11,176.06,8.5188]
[1641064172775,1.83623061,176.11,176.04,1.3203]
[1641064173175,1.83623061,176.11,176.05,8.5189]
[1641064173378,2.33623061,176.11,176.04,1.3203]
[1641064173875,1.57623061,176.09,176.04,1.3203]
[1641064174075,1.83623061,176.09,176.04,1.3203]
[1641064174277,1.83623061,176.09,176.04,9.84]
[1641064174475,0.26,176.09,176.04,9.84]
[1641064174899,1.83623061,176.1,176.04,9.84]
[1641064175299,1.83623061,176.1,176.04,10.34]
[1641064175600,1.83623061,176.1,176.04,9.84]
[1641064176303,0.26,176.1,176.04,9.84]
[1641064176503,1.57623061,176.11,176.04,9.84]
[1641064176504,1.83623061,176.11,176.04,9.84]
[1641064177604,1.57623061,176.11,176.04,10.34]
[1641064178910,1.57623061,176.12,176.04,10.34]
[1641064180109,1.83623061,176.12,176.04,10.34]
[1641064181610,0.26,176.12,176.04,10.34]
[1641064182011,1.83623061,176.13,176.04,10.34]
[1641064184815,1.83623061,176.13,176.04,18.67]
[1641064185817,1.57623061,176.13,176.04,18.67]
[1641064186417,1.57623061,176.14,176.04,18.67]
[1641064186818,6.36063719,176.13,176.04,18.17]
[1641064187016,6.36063719,176.13,176.0,75.5052]
[1641064187217,15.64053719,176.13,176.0,75.5052]
[1641064187417,1.42669368,176.12,176.0,75.5052]
[1641064187618,0.26,176.12,176.0,75.5052]
[1641064187818,1.57623061,176.11,176.01,1.2424]
[1641064188020,1.83623061,176.11,176.01,1.2424]
[1641064188318,8.5207,176.09,176.01,9.7631]
[1641064188518,2.07623061,176.11,176.01,9.7631]
[1641064188717,1.57623061,176.09,176.01,9.7631]
[1641064189319,1.57623061,176.1,176.01,9.7631]
[1641064189519,0.5,176.09,176.01,9.7631]
[1641064190122,1.83623061,176.1,176.01,9.7631]
[1641064190522,26.53386288,176.09,176.01,9.7631]
[1641064190924,27.29386288,176.09,176.01,9.7631]
[1641064191323,2.33623061,176.09,176.01,9.7631]
[1641064191525,1.83623061,176.09,176.01,9.7631]
[1641064191726,1.83623061,176.09,176.01,10.2631]
[1641064192124,0.26,176.09,176.01,10.2631]
[1641064192523,1.83623061,176.11,176.01,10.2631]
[1641064194750,10.35553061,176.11,176.01,10.2631]
[1641064194949,10.85553061,176.11,176.01,10.2631]
[1641064199358,11.20182938,176.1,176.01,10.2631]
[1641064199556,8.5204,176.09,176.01,10.2631]
[1641064199756,10.09663061,176.09,176.01,10.2631]
[1641064199956,10.85663061,176.09,176.01,10.2631]
[1641064200256,10.35663061,176.09,176.01,10.2631]
[1641064200858,10.85663061,176.09,176.01,10.2631]
[1641064201059,0.76,176.09,176.01,10.2631]
[1641064201261,0.26,176.09,176.01,10.2631]
[1641064201460,2.33623061,176.1,176.01,10.2631]
[1641064201864,2.07623061,176.1,176.01,10.2631]
[1641064202363,0.5,176.1,176.01,10.2631]
[1641064202862,2.07623061,176.11,176.01,10.2631]
[1641064203664,2.07623061,176.11,176.02,8.33]
[1641064203872,0.5,176.11,176.06,23.29937808]
[1641064204373,2.07623061,176.12,176.06,23.29937808]
[1641064204566,2.33623061,176.12,176.06,23.29937808]
[1641064204965,2.07623061,176.12,176.06,23.29937808]
[1641064206268,2.33623061,176.12,176.06,23.29937808]
[1641064212174,0.26,176.12,176.06,23.79937808]
[1641064212575,1.83623061,176.13,176.06,23.79937808]
[1641064212773,1.57623061,176.12,176.06,23.79937808]
[1641064212975,1.83623061,176.12,176.06,23.79937808]
[1641064213875,0.26,176.12,176.06,23.79937808]
[1641064214074,1.83623061,176.13,176.06,23.79937808]
[1641064217277,1.83623061,176.13,176.06,9.018]
[1641064221382,2.33623061,176.13,176.06,9.018]
[1641064222381,1.83623061,176.13,176.06,9.018]
[1641064222582,1.57623061,176.13,176.06,9.018]
[1641064222985,2.07623061,176.13,176.06,9.018]
[1641064223183,1.57623061,176.13,176.07,8.33]
[1641064223383,1.57623061,176.13,176.1,8.5143]
[1641064223588,1.57623061,176.13,176.11,0.50197092]
[1641064223784,1.57623061,176.15,176.12,27.74889569]
[1641064223983,1.57623061,176.15,176.13,1.2301]
[1641064224384,1.57623061,176.15,176.14,8.5137]
[1641064224683,0.26,176.15,176.14,8.5137]
[1641064224884,0.26,176.15,176.14,9.0137]
[1641064225287,1.57623061,176.2,176.14,9.0137]
[1641064226783,1.83623061,176.2,176.14,9.0137]
[1641064229715,1.57623061,176.19,176.14,9.0137]
[1641064230115,1.83623061,176.19,176.14,9.0137]
[1641064230517,1.83623061,176.19,176.13,9.7668]
[1641064230715,2.33623061,176.19,176.13,9.7668]
[1641064230918,0.76,176.19,176.13,9.7668]
[1641064231115,0.5,176.19,176.13,1.2513]
[1641064231317,13.92014393,176.2,176.1,8.33]
[1641064231519,1.57623061,176.17,176.1,8.83]
[1641064231716,1.57623061,176.17,176.12,8.5156]
[1641064231918,1.83623061,176.17,176.1,19.39761045]
[1641064232717,0.26,176.17,176.1,20.64881045]
[1641064233119,1.83623061,176.19,176.1,20.64881045]
[1641064233617,1.83623061,176.19,176.14,8.5148]
[1641064235219,1.57623061,176.18,176.14,8.5148]
[1641064235621,1.83623061,176.18,176.14,8.5148]
[1641064237820,0.26,176.18,176.14,8.5148]
[1641064238021,1.83623061,176.19,176.14,8.5148]
[1641064239922,2.33623061,176.19,176.13,8.5155]
[1641064240123,2.33623061,176.19,176.12,1.3411]
[1641064240324,2.33623061,176.19,176.09,36.7141]
[1641064240622,1.57623061,176.17,176.09,8.83]
[1641064240825,1.57623061,176.17,176.09,10.104]
[1641064241022,2.33623061,176.17,176.12,8.516]
[1641064241622,1.57623061,176.16,176.12,8.516]
[1641064242022,1.83623061,176.16,176.12,8.516]
[1641064245725,0.26,176.16,176.12,8.516]
[1641064246126,1.83623061,176.17,176.12,8.516]
[1641064246529,1.57623061,176.16,176.12,8.516]
[1641064246928,1.83623061,176.16,176.12,8.516]
[1641064248534,0.26,176.16,176.12,8.516]
[1641064249132,1.83623061,176.17,176.12,8.516]
[1641064250934,2.33623061,176.17,176.12,8.516]
[1641064251136,1.83623061,176.17,176.12,8.516]
[1641064251534,1.57623061,176.16,176.12,8.516]
[1641064251934,1.83623061,176.16,176.12,8.516]
[1641064255137,1.83623061,176.16,176.11,8.5166]
[1641064255337,2.33623061,176.16,176.11,8.5166]
[1641064255638,1.83623061,176.16,176.11,8.5166]
[1641064255838,0.26,176.16,176.11,8.5166]
[1641064256038,10.83669278,176.17,176.11,8.5166]
[1641064256241,11.33669278,176.17,176.11,8.5166]
[1641064256640,0.76,176.17,176.11,8.5166]
[1641064256840,0.26,176.17,176.11,8.5166]
[1641064257041,2.33623061,176.18,176.11,8.5166]
[1641064257846,30.4896849,176.17,176.11,8.5166]
[1641064258042,30.7496849,176.17,176.11,8.5166]
[1641064258241,31.2496849,176.17,176.11,8.5166]
[1641064259044,30.7496849,176.17,176.11,8.5166]
[1641064259244,1.57623061,176.15,176.11,8.5166]
[1641064259643,1.83623061,176.15,176.11,8.5166]
[1641064260043,0.26,176.15,176.11,8.5166]
[1641064260447,1.83623061,176.16,176.11,8.5166]
[1641064260644,1.57623061,176.15,176.11,8.5166]
[1641064261067,1.83623061,176.15,176.11,8.5166]
[1641064264877,1.83623061,176.15,176.11,9.0166]
[1641064265079,1.83623061,176.15,176.11,8.5166]
[1641064265481,0.26,176.15,176.11,8.5166]
[1641064265881,1.83623061,176.16,176.11,9.0166]
[1641064267279,1.83623061,176.16,176.11,8.5166]
[1641064267879,1.83623061,176.16,176.11,9.0166]
[1641064268078,1.83623061,176.16,176.11,8.5166]
[1641064268279,1.83623061,176.16,176.11,9.0166]
[1641064268481,1.83623061,176.16,176.11,8.5166]
[1641064268680,1.83623061,176.16,176.11,9.0166]
[1641064269081,1.83623061,176.16,176.11,8.5166]
[1641064269882,1.83623061,176.16,176.11,9.0166]
[1641064272384,1.83623061,176.16,176.11,8.5166]
[1641064272788,1.83623061,176.16,176.11,9.0166]
[1641064272985,1.83623061,176.16,176.11,8.5166]
[1641064273386,1.83623061,176.16,176.11,9.0166]
[1641064273585,1.83623061,176.16,176.11,8.5166]
[1641064273787,1.57623061,176.15,176.11,9.0166]
[1641064274085,1.83623061,176.15,176.11,9.0166]
[1641064274487,1.83623061,176.15,176.11,8.5166]
[1641064274684,0.26,176.15,176.11,9.0166]
[1641064275088,1.83623061,176.16,176.11,8.5166]
[1641064275588,1.83623061,176.16,176.11,9.0166]
[1641064276291,0.26,176.16,176.11,9.0166]
[1641064276492,1.57623061,176.17,176.11,9.0166]
[1641064276493,1.83623061,176.17,176.11,9.0166]
[1641064278193,1.57623061,176.18,176.11,9.0166]
[1641064278993,1.57623061,176.18,176.15,8.5145]
[1641064279193,1.57623061,176.18,176.16,0.50197092]
[1641064279595,0.26,176.18,176.16,0.50197092]
[1641064279995,1.57623061,176.19,176.16,0.50197092]
[1641064279996,1.83623061,176.19,176.16,0.50197092]
[1641064281798,0.26,176.19,176.16,0.50197092]
[1641064282100,1.83623061,176.2,176.16,0.50197092]
[1641064282599,0.26,176.2,176.16,9.01607092]
[1641064283001,2.33623061,176.23,176.16,9.01607092]
[1641064283604,1.57623061,176.22,176.16,9.01607092]
[1641064284006,2.33623061,176.22,176.16,9.01607092]
[1641064284404,1.57623061,176.21,176.16,0.50197092]
[1641064284607,1.83623061,176.21,176.16,0.50197092]
[1641064285506,1.57623061,176.19,176.16,0.50197092]
[1641064286006,1.83623061,176.19,176.16,0.50197092]
[1641064287409,0.26,176.19,176.16,0.50197092]
[1641064287607,1.83623061,176.2,176.16,0.50197092]
[1641064288909,2.33623061,176.2,176.16,0.50197092]
[1641064289112,1.57623061,176.2,176.16,9.01607092]
[1641064290512,1.83623061,176.2,176.16,9.01607092]
[1641064290917,1.83623061,176.2,176.16,9.51607092]
[1641064291914,1.83623061,176.2,176.16,9.01607092]
[1641064292717,0.26,176.2,176.16,9.51607092]
[1641064293119,1.83623061,176.21,176.16,9.51607092]
[1641064293314,1.83623061,176.21,176.16,9.01607092]
[1641064293515,1.83623061,176.21,176.16,10.30137092]
[1641064294938,1.57623061,176.2,176.16,10.30137092]
[1641064295538,1.83623061,176.2,176.16,10.30137092]
[1641064297543,0.26,176.2,176.16,10.80137092]
[1641064297940,2.33623061,176.22,176.16,10.80137092]
[1641064298341,2.33623061,176.22,176.16,0.50197092]
[1641064298544,12.27842429,176.22,176.16,0.50197092]
[1641064299241,1.57623061,176.2,176.16,0.50197092]
[1641064299441,2.07623061,176.2,176.11,1.2645]
[1641064299742,12.27922429,176.2,176.11,1.2645]
[1641064299942,19.07922429,176.2,176.08,72.7552]
[1641064300344,1.57623061,176.18,176.08,72.7552]
[1641064300544,6.10558219,176.17,176.08,72.7552]
[1641064300846,14.62328219,176.17,176.08,81.2731]
[1641064301053,15.38328219,176.17,176.08,81.2731]
[1641064302765,16.9595128,176.17,176.08,81.2731]
[1641064304863,16.9595128,176.17,176.08,81.7731]
[1641064305063,16.9595128,176.17,176.08,81.2731]
[1641064305266,16.9595128,176.17,176.06,1.3264]
[1641064305267,16.9595128,176.17,176.06,8.5185]
[1641064305464,8.5197,176.13,176.02,29.23299013]
[1641064305864,9.2797,176.13,176.02,29.23299013]
[1641064306094,9.2797,176.13,176.0,1.2202]
[1641064306264,3.00292429,176.12,176.0,1.2202]
[1641064306465,8.5218,176.07,176.0,9.742]
[1641064306866,9.2818,176.07,176.0,9.742]
[1641064307067,9.2818,176.07,176.0,34.98685009]
[1641064309767,9.2818,176.07,176.0,9.742]
[1641064309969,9.2818,176.07,175.97,1.2545]
[1641064310770,9.2818,176.07,175.98,26.96825435]
[1641064313273,9.2818,176.07,175.98,35.49065435]
[1641064313473,10.85803061,176.07,175.98,35.49065435]
[1641064313900,10.85803061,176.07,175.98,35.99065435]
[1641064314102,10.85803061,176.07,175.98,35.49065435]
[1641064314702,10.85803061,176.07,175.98,35.99065435]
[1641064314902,9.2818,176.07,175.98,35.99065435]
[1641064315103,9.2818,176.07,175.98,35.49065435]
[1641064315701,9.2818,176.07,175.98,35.99065435]
[1641064315900,9.2818,176.07,175.98,35.49065435]
[1641064316703,9.2818,176.07,175.98,35.99065435]
[1641064317704,9.0218,176.07,175.98,35.99065435]
[1641064317904,1.57623061,176.08,175.98,35.99065435]
[1641064318107,2.07623061,176.08,175.98,35.99065435]
[1641064318505,0.5,176.08,175.98,35.99065435]
[1641064318906,2.07623061,176.09,175.98,35.99065435]
[1641064319106,2.33623061,176.09,175.98,35.99065435]
[1641064319304,2.33623061,176.09,175.98,35.49065435]
[1641064319706,1.57623061,176.07,175.98,35.49065435]
[1641064319906,2.07623061,176.07,175.98,35.49065435]
[1641064320104,2.33623061,176.07,175.98,35.49065435]
[1641064320612,1.83623061,176.07,175.98,35.49065435]
[1641064321005,1.83623061,176.07,175.98,35.99065435]
[1641064321207,0.26,176.07,175.98,35.99065435]
[1641064321607,2.33623061,176.09,175.98,35.99065435]
[1641064322211,2.33623061,176.09,175.99,1.2156]
[1641064322408,2.33623061,176.09,176.02,8.5205]
[1641064322809,10.85723061,176.09,176.02,8.5205]
[1641064323809,10.85723061,176.09,176.0,8.5212]
[1641064324611,2.33623061,176.09,176.0,9.0212]
[1641064325010,2.07623061,176.09,176.0,9.0212]
[1641064325211,2.07623061,176.09,176.0,17.3512]
[1641064325817,2.07623061,176.09,176.0,18.77789368]
[1641064326012,0.5,176.09,176.0,18.77789368]
[1641064326412,1.57623061,176.11,176.0,18.77789368]
[1641064326812,1.57623061,176.13,176.01,1.3234]
[1641064327013,1.57623061,176.13,176.06,8.5179]
[1641064327212,2.07623061,176.13,176.07,13.05415884]
[1641064327813,1.57623061,176.13,176.07,13.05415884]
[1641064328614,1.57623061,176.13,176.07,22.07215884]
[1641064329013,1.83623061,176.13,176.07,22.07215884]
[1641064329415,2.33623061,176.13,176.07,21.57215884]
[1641064330015,1.83623061,176.13,176.07,21.57215884]
[1641064330420,1.57623061,176.12,176.07,21.57215884]
[1641064330614,1.83623061,176.12,176.07,21.57215884]
[1641064330815,1.57623061,176.12,176.07,22.07215884]
[1641064331018,1.57623061,176.13,176.07,21.57215884]
[1641064331418,1.57623061,176.13,176.07,22.07215884]
[1641064331818,1.57623061,176.14,176.07,22.07215884]
[1641064332018,1.83623061,176.14,176.07,21.57215884]
[1641064332616,1.83623061,176.14,176.07,22.07215884]
[1641064332917,1.83623061,176.14,176.07,21.57215884]
[1641064333518,1.83623061,176.14,176.07,22.07215884]
[1641064334417,2.33623061,176.14,176.07,22.07215884]
[1641064334618,2.33623061,176.14,176.07,21.57215884]
[1641064335220,2.33623061,176.14,176.07,9.018]
[1641064336023,2.33623061,176.14,176.07,8.518]
[1641064336623,2.33623061,176.14,176.07,9.018]
[1641064337426,2.33623061,176.14,176.07,8.518]
[1641064338031,2.33623061,176.14,176.07,9.018]
[1641064338226,1.57623061,176.13,176.07,9.018]
[1641064338427,1.57623061,176.13,176.07,8.518]
[1641064338629,1.83623061,176.13,176.07,8.518]
[1641064339030,1.83623061,176.13,176.07,9.018]
[1641064339958,1.83623061,176.13,176.07,8.518]
[1641064340357,1.83623061,176.13,176.07,9.018]
[1641064340959,1.83623061,176.13,176.07,8.518]
[1641064341170,1.83623061,176.13,176.07,9.018]
[1641064341960,0.26,176.13,176.07,9.018]
[1641064342360,2.33623061,176.15,176.07,8.518]
[1641064342961,2.33623061,176.15,176.07,9.018]
[1641064343360,1.57623061,176.14,176.07,9.018]
[1641064343561,1.83623061,176.14,176.07,9.018]
[1641064343763,2.33623061,176.14,176.07,9.018]
[1641064344162,0.76,176.14,176.07,9.018]
[1641064344362,0.26,176.14,176.07,9.018]
[1641064344564,2.33623061,176.15,176.07,9.018]
[1641064346066,1.57623061,176.14,176.07,9.018]
[1641064346269,2.07623061,176.14,176.07,8.518]
[1641064346572,2.33623061,176.14,176.07,8.518]
[1641064346968,2.33623061,176.14,176.07,9.018]
[1641064349271,2.33623061,176.14,176.07,8.518]
[1641064349774,2.33623061,176.14,176.07,9.018]
[1641064349973,2.33623061,176.14,176.07,8.518]
[1641064350374,2.33623061,176.14,176.07,9.018]
[1641064350573,0.76,176.14,176.07,9.018]
[1641064350972,2.33623061,176.15,176.07,9.018]
[1641064351375,2.33623061,176.15,176.07,8.518]
[1641064351773,2.33623061,176.15,176.07,9.018]
[1641064352375,2.33623061,176.15,176.07,8.518]
[1641064352775,2.33623061,176.15,176.07,9.018]
[1641064353176,2.33623061,176.15,176.07,8.518]
[1641064353679,2.33623061,176.15,176.07,10.2343]
[1641064355878,2.33623061,176.15,176.07,9.7343]
[1641064356079,1.57623061,176.14,176.07,9.7343]
[1641064356482,2.33623061,176.14,176.07,10.2343]
[1641064357279,0.76,176.14,176.07,10.2343]
[1641064357480,2.33623061,176.15,176.07,10.2343]
[1641064358080,2.33623061,176.15,176.07,9.7343]
[1641064359310,2.33623061,176.15,176.07,10.2343]
[1641064360009,2.33623061,176.15,176.07,9.7343]
[1641064360412,2.33623061,176.15,176.07,10.2343]
[1641064360611,1.57623061,176.14,176.07,10.2343]
[1641064361010,2.33623061,176.14,176.07,10.2343]
[1641064361211,2.33623061,176.14,176.07,9.7343]
[1641064361913,0.76,176.14,176.07,10.2343]
[1641064362112,0.5,176.14,176.07,10.2343]
[1641064362317,10.85433061,176.15,176.07,10.2343]
[1641064363113,10.85433061,176.15,176.07,9.7343]
[1641064363312,10.59433061,176.15,176.07,9.7343]
[1641064363515,2.07623061,176.15,176.07,9.7343]
[1641064363716,2.07623061,176.15,176.07,10.2343]
[1641064364517,0.5,176.15,176.07,10.2343]
[1641064364918,2.07623061,176.16,176.07,10.2343]
[1641064365319,24.59666763,176.16,176.07,10.2343]
[1641064365719,24.85666763,176.16,176.07,10.2343]
[1641064366221,2.33623061,176.16,176.07,10.2343]
[1641064367318,0.76,176.16,176.07,10.2343]
[1641064367517,0.5,176.16,176.07,10.2343]
[1641064367718,5.03939668,176.17,176.07,10.2343]
[1641064368119,2.07623061,176.17,176.07,10.2343]
[1641064369022,2.33623061,176.17,176.07,10.2343]
[1641064369522,2.23423061,176.17,176.07,10.2343]
[1641064370924,0.76,176.17,176.07,10.2343]
[1641064371129,0.5,176.17,176.07,10.2343]
[1641064371425,8.5166,176.18,176.07,10.2343]
[1641064371826,9.2766,176.18,176.07,10.2343]
[1641064372027,9.2766,176.18,176.07,9.7343]
[1641064372423,9.2766,176.18,176.07,10.2343]
[1641064377531,0.5,176.18,176.07,10.2343]
[1641064377731,3.72725013,176.19,176.07,11.66099368]
[1641064377929,3.72725013,176.19,176.08,8.33]
[1641064378130,3.72725013,176.19,176.13,8.5152]
[1641064378728,0.5,176.19,176.13,8.5152]
[1641064378929,30.94685424,176.2,176.13,8.5152]
[1641064379328,0.5,176.2,176.13,8.5152]
[1641064379732,80.81065013,176.22,176.13,9.0152]
[1641064380136,77.5834,176.22,176.13,9.0152]
[1641064380331,77.8434,176.22,176.13,17.5931269]
[1641064380529,77.8434,176.22,176.17,8.5136]
[1641064380729,0.76,176.22,176.17,8.5136]
[1641064380928,0.26,176.22,176.17,8.5136]
[1641064381129,27.44987803,176.23,176.17,8.5136]
[1641064383134,27.44987803,176.23,176.08,8.33]
[1641064383331,37.20657171,176.23,176.08,8.33]
[1641064383731,45.72087171,176.23,176.08,8.33]
[1641064384331,3.22725013,176.19,176.08,8.33]
[1641064384531,3.48725013,176.19,176.08,16.8473]
[1641064384730,3.98725013,176.19,176.08,16.8473]
[1641064385431,8.5165,176.18,176.08,16.8473]
[1641064385634,8.5165,176.18,176.08,17.3473]
[1641064385831,9.2765,176.18,176.08,17.3473]
[1641064386433,9.2765,176.18,176.12,8.5158]
[1641064388837,9.2765,176.18,176.12,22.40799526]
[1641064389039,0.76,176.18,176.12,22.40799526]
[1641064389440,9.2759,176.19,176.12,22.40799526]
[1641064391940,8.7759,176.19,176.12,22.40799526]
[1641064392365,9.2759,176.19,176.12,22.40799526]
[1641064394343,9.2759,176.19,176.12,8.5158]
[1641064395450,8.7759,176.19,176.12,8.5158]
[1641064395848,9.2759,176.19,176.12,8.5158]
[1641064396854,9.2759,176.19,176.04,8.33]
[1641064397055,10.70259368,176.19,176.04,8.33]
[1641064397254,19.03259368,176.19,176.04,8.33]
[1641064397459,19.03259368,176.19,176.02,72.9184]
[1641064397661,96.42119368,176.19,176.02,72.9184]
[1641064397862,10.13770876,176.16,176.02,72.9184]
[1641064398061,8.52,176.1,176.02,81.4384]
[1641064398462,9.28,176.1,176.02,81.4384]
[1641064400676,8.78,176.1,176.02,81.4384]
[1641064401675,8.78,176.1,176.02,8.52]
[1641064405078,24.119309,176.09,176.02,8.52]
[1641064405279,32.639809,176.09,176.02,8.52]
[1641064405483,33.399809,176.09,176.01,9.7486]
[1641064405681,33.399809,176.09,175.99,72.109]
[1641064406582,33.399809,176.09,175.99,80.6307]
[1641064414593,9.2805,176.09,175.99,80.6307]
[1641064414992,0.5,176.09,175.99,89.4607]
[1641064415394,3.22725013,176.14,175.99,91.14739368]
[1641064416193,3.22725013,176.14,176.07,8.5175]
[1641064416396,3.22725013,176.14,176.07,20.60534759]
[1641064416596,0.26,176.14,176.07,20.60534759]
[1641064416993,8.7776,176.15,176.07,20.60534759]
[1641064417194,8.5173,176.16,176.07,21.10534759]
[1641064417397,3.22725013,176.17,176.07,29.43534759]
[1641064417794,3.22725013,176.17,176.07,29.69534759]
[1641064417994,3.22725013,176.2,176.07,30.92064759]
[1641064418195,3.22725013,176.2,176.14,8.5148]
[1641064418398,3.72725013,176.2,176.14,8.5148]
[1641064418799,3.98725013,176.2,176.14,33.22741457]
[1641064418999,0.76,176.2,176.14,33.22741457]
[1641064419398,10.44387988,176.21,176.14,33.22741457]
[1641064419598,3.98725013,176.21,176.14,33.22741457]
[1641064422005,3.98725013,176.21,176.14,8.5148]
[1641064423809,3.98725013,176.21,176.13,8.5156]
[1641064424610,6.45674569,176.2,176.11,32.38671473]
[1641064424807,6.45674569,176.2,176.12,8.5161]
[1641064425009,7.21674569,176.2,176.12,8.5161]
[1641064425808,3.98725013,176.2,176.12,8.5161]
[1641064426426,0.76,176.2,176.12,8.5161]
[1641064426627,0.5,176.2,176.12,8.5161]
[1641064426927,3.98725013,176.21,176.12,8.5161]
[1641064427131,3.98725013,176.21,176.12,9.0161]
[1641064427930,6.45669069,176.2,176.12,9.0161]
[1641064428130,6.71669069,176.2,176.12,9.0161]
[1641064428334,7.21669069,176.2,176.12,9.0161]
[1641064429034,0.76,176.2,176.12,9.0161]
[1641064429234,0.26,176.2,176.12,9.0161]
[1641064429435,3.48725013,176.21,176.12,9.0161]
[1641064429832,0.26,176.21,176.12,9.0161]
[1641064430034,0.5,176.21,176.12,9.0161]
[1641064430733,0.76,176.22,176.12,9.0161]
[1641064430934,3.98725013,176.23,176.12,9.0161]
[1641064431735,6.45587411,176.22,176.12,9.0161]
[1641064431934,6.95587411,176.22,176.13,1.2423]
[1641064432236,7.21587411,176.22,176.16,8.514]
[1641064433334,3.98725013,176.22,176.16,8.514]
[1641064436437,0.76,176.22,176.16,8.514]
[1641064436836,3.98725013,176.23,176.16,8.514]
[1641064438838,9.68318035,176.22,176.16,8.514]
[1641064439038,9.94318035,176.22,176.16,8.514]
[1641064439238,10.44318035,176.22,176.16,8.514]
[1641064439439,7.21593022,176.22,176.16,8.514]
[1641064439940,0.76,176.22,176.16,8.514]
[1641064440138,3.98725013,176.23,176.16,8.514]
[1641064440437,3.72725013,176.23,176.16,8.514]
[1641064440638,6.45587542,176.22,176.16,8.514]
[1641064440840,6.95587542,176.22,176.16,9.014]
[1641064441237,0.5,176.22,176.16,9.014]
[1641064441638,3.98725013,176.24,176.16,9.014]
[1641064442442,3.48725013,176.24,176.16,9.014]
[1641064442843,0.26,176.24,176.16,9.014]
[1641064443043,11.97465013,176.25,176.16,9.014]
[1641064443244,12.47465013,176.25,176.16,9.014]